bitfinex-derivatives/quotes_BTCF0:USTF0_20250108
["timestamp","ask_amount","ask_price","bid_price","bid_amount"]
[1736295539531,0.11335464,97272.0,97262.0,0.3608]
[1736295539931,0.7895,97273.0,97262.0,0.3608]
[1736295540135,0.11384859,97272.0,97262.0,0.3608]
[1736295544946,0.11384859,97272.0,97262.0,0.2899788]
[1736295548538,0.11384859,97272.0,97262.0,0.23203494]
[1736295552942,0.11384859,97272.0,97262.0,0.16253855]
[1736295553436,0.11384859,97272.0,97260.0,0.10184498]
[1736295558343,0.77141141,97281.0,97267.0,0.3608]
[1736295558546,0.66631403,97281.0,97271.0,0.10184498]
[1736295558750,0.11827807,97272.0,97271.0,0.10184498]
[1736295559048,0.66631403,97281.0,97260.0,0.46264498]
[1736295559260,0.11259624,97272.0,97271.0,0.10184498]
[1736295559555,0.11259624,97278.0,97260.0,0.46264498]
[1736295559852,0.66056403,97281.0,97271.0,0.10184498]
[1736295560055,0.11259624,97277.0,97271.0,0.07165179]
[1736295560248,0.11878139,97278.0,97271.0,0.07165179]
[1736295560454,0.66056403,97281.0,97271.0,0.07165179]
[1736295560953,0.66056403,97281.0,97271.0,0.00083908]
[1736295560954,0.11878139,97277.0,97271.0,0.00083908]
[1736295561252,0.66056403,97281.0,97271.0,0.00083908]
[1736295561449,0.10803211,97277.0,97271.0,0.00083908]
[1736295561850,0.66056403,97281.0,97271.0,0.00083908]
[1736295562249,0.11478133,97276.0,97271.0,0.00083908]
[1736295562450,0.11478133,97279.0,97271.0,0.00083908]
[1736295562657,0.3502927,97281.0,97269.0,0.10184498]
[1736295562846,0.10978133,97275.0,97269.0,0.10184498]
[1736295563042,0.08891133,97278.0,97260.0,0.56448996]
[1736295563248,0.3144727,97281.0,97268.0,0.46264498]
[1736295563449,0.09321724,97275.0,97271.0,0.10184498]
[1736295563650,0.3608,97289.0,97272.0,0.3086]
[1736295563854,0.3608,97289.0,97279.0,0.20368996]
[1736295564053,0.11864724,97288.0,97279.0,0.20368996]
[1736295564855,0.11864724,97288.0,97279.0,0.10184498]
[1736295565762,0.11864724,97288.0,97277.0,0.3608]
[1736295565967,0.11864724,97288.0,97278.0,0.10184498]
[1736295566848,0.11864724,97288.0,97278.0,0.56324498]
[1736295568958,0.11864724,97288.0,97278.0,0.49243875]
[1736295571852,0.08924867,97288.0,97278.0,0.49243875]
[1736295572052,0.06197908,97288.0,97278.0,0.49243875]
[1736295573165,0.3608,97279.0,97278.0,0.49243875]
[1736295573365,0.3608,97279.0,97278.0,0.4614]
[1736295573568,0.47624479,97279.0,97278.0,0.4614]
[1736295574865,0.47624479,97279.0,97278.0,0.31977976]
[1736295576867,0.47624479,97279.0,97278.0,0.24896867]
[1736295578167,0.43496372,97279.0,97278.0,0.24896867]
[1736295578359,0.11544479,97279.0,97278.0,0.24896867]
[1736295578773,0.10719562,97288.0,97278.0,0.24786867]
[1736295578962,0.3608,97289.0,97278.0,0.34971365]
[1736295579465,0.11924688,97288.0,97278.0,0.34971365]
[1736295583166,0.89482801,97299.0,97278.0,0.34971365]
[1736295583475,0.10966299,97287.0,97278.0,0.34971365]
[1736295583670,0.10966299,97288.0,97278.0,0.34971365]
[1736295583872,0.89482801,97299.0,97278.0,0.34971365]
[1736295584175,0.10885518,97287.0,97278.0,0.34971365]
[1736295584377,0.10885518,97287.0,97278.0,0.26602652]
[1736295584579,0.10885518,97295.0,97278.0,0.26602652]
[1736295584768,0.10885518,97286.0,97278.0,0.16260272]
[1736295584969,0.10885518,97286.0,97278.0,0.09178994]
[1736295585168,0.10885518,97294.0,97278.0,0.09178994]
[1736295585471,0.11817044,97285.0,97278.0,0.09178994]
[1736295585873,0.11817044,97298.0,97278.0,0.09178994]
[1736295586070,0.11817044,97294.0,97278.0,0.09178994]
[1736295586473,0.11491658,97298.0,97278.0,0.09178994]
[1736295586674,0.89482801,97299.0,97278.0,0.09178994]
[1736295586873,0.11491658,97293.0,97278.0,0.09178994]
[1736295587074,0.11491658,97298.0,97278.0,0.09178994]
[1736295587274,0.89482801,97299.0,97288.0,0.10184498]
[1736295587579,0.11557654,97292.0,97288.0,0.10184498]
[1736295587877,0.89482801,97299.0,97288.0,0.10184498]
[1736295588076,0.31422372,97299.0,97288.0,0.10184498]
[1736295588377,0.1175873,97292.0,97288.0,0.10184498]
[1736295588577,0.1175873,97298.0,97288.0,0.10184498]
[1736295588777,0.1175873,97291.0,97288.0,0.10184498]
[1736295589173,0.1175873,97298.0,97288.0,0.3608]
[1736295589377,0.31422372,97299.0,97288.0,0.10184498]
[1736295589580,0.11280743,97290.0,97288.0,0.10184498]
[1736295589772,0.11280743,97291.0,97280.0,0.10184498]
[1736295589972,0.31422372,97299.0,97280.0,0.10184498]
[1736295590173,0.11280743,97290.0,97289.0,0.10184498]
[1736295590375,0.11280743,97290.0,97280.0,0.10184498]
[1736295590678,0.11267375,97298.0,97280.0,0.10184498]
[1736295590679,0.31422372,97299.0,97280.0,0.10184498]
[1736295590870,0.31422372,97299.0,97289.0,0.10184498]
[1736295591072,0.11267375,97293.0,97289.0,0.0634001]
[1736295591271,0.51077375,97298.0,97283.0,0.10184498]
[1736295591472,0.3981,97298.0,97283.0,0.10184498]
[1736295591673,0.107448,97292.0,97283.0,0.10184498]
[1736295592073,0.3981,97298.0,97283.0,0.10184498]
[1736295592374,0.11733311,97291.0,97283.0,0.10184498]
[1736295592587,0.11733311,97294.0,97283.0,0.10184498]
[1736295592779,0.12674012,97346.0,97283.0,0.10184498]
[1736295593073,0.11733311,97293.0,97283.0,0.03103495]
[1736295593277,0.11733311,97294.0,97283.0,0.03103495]
[1736295593481,0.11733311,97297.0,97283.0,0.03103495]
[1736295593680,0.11890629,97293.0,97283.0,0.03103495]
[1736295594083,0.12674012,97346.0,97283.0,0.03103495]
[1736295594479,0.1192269,97292.0,97283.0,0.03103495]
[1736295594786,0.12851315,97721.0,97280.0,0.10184498]
[1736295594983,0.1192269,97291.0,97280.0,0.07974329]
[1736295595376,0.00378355,98074.0,97280.0,0.07974329]
[1736295595686,0.10968297,97290.0,97280.0,0.07974329]
[1736295595879,0.10968297,97291.0,97280.0,0.07974329]
[1736295596184,0.11834981,97297.0,97280.0,0.07974329]
[1736295596384,0.11834981,97290.0,97280.0,0.10184498]
[1736295596578,0.11834981,97291.0,97280.0,0.10184498]
[1736295596780,0.11834981,97296.0,97280.0,0.10184498]
[1736295597172,0.11834981,97292.0,97280.0,0.10184498]
[1736295597376,0.12674012,97319.0,97280.0,0.10184498]
[1736295597576,0.1191078,97296.0,97280.0,0.10184498]
[1736295597787,0.1191078,97292.0,97280.0,0.10184498]
[1736295597985,0.10184498,97320.0,97280.0,0.10184498]
[1736295598382,0.10891398,97291.0,97280.0,0.10184498]
[1736295598584,0.10891398,97297.0,97280.0,0.10184498]
[1736295598781,0.10184498,97320.0,97280.0,0.10184498]
[1736295598972,0.10891398,97290.0,97280.0,0.10184498]
[1736295599176,0.10891398,97295.0,97280.0,0.10184498]
[1736295599379,0.16994396,97316.0,97280.0,0.10184498]
[1736295599681,0.11845304,97294.0,97280.0,0.10184498]
[1736295599877,0.11845304,97296.0,97280.0,0.10184498]
[1736295600087,0.04320384,97316.0,97280.0,0.10184498]
[1736295600278,0.11819236,97295.0,97284.0,0.3608]
[1736295600479,0.11819236,97295.0,97280.0,0.10184498]
[1736295600685,0.51124498,97300.0,97278.0,0.07115809]
[1736295600985,0.11819236,97294.0,97278.0,0.00034805]
[1736295601187,0.11819236,97295.0,97278.0,0.00034805]
[1736295601386,0.51124498,97300.0,97278.0,0.00034805]
[1736295601583,0.11753405,97294.0,97278.0,0.00034805]
[1736295601784,0.11753405,97295.0,97278.0,0.00034805]
[1736295601987,0.51124498,97300.0,97278.0,0.00034805]
[1736295602185,0.3608,97290.0,97278.0,0.00034805]
[1736295602488,0.10946276,97289.0,97276.0,0.31977734]
[1736295603081,0.3608,97278.0,97276.0,0.04231929]
[1736295603375,0.3608,97278.0,97263.0,0.3608]
[1736295603576,0.50641029,97277.0,97268.0,0.10184498]
[1736295604676,0.50641029,97277.0,97272.0,0.3608]
[1736295604877,0.50641029,97277.0,97272.0,0.30285912]
[1736295605084,0.11481029,97277.0,97272.0,0.30285912]
[1736295605485,0.11654257,97289.0,97272.0,0.30285912]
[1736295605694,0.3608,97290.0,97272.0,0.30285912]
[1736295605882,0.3608,97290.0,97279.0,0.10184498]
[1736295606195,0.11654257,97289.0,97279.0,0.10184498]
[1736295606381,0.11654257,97289.0,97285.0,0.3608]
[1736295606688,0.10771116,97297.0,97285.0,0.3608]
[1736295606890,0.10771116,97297.0,97287.0,0.10184498]
[1736295607187,0.3608,97299.0,97287.0,0.10184498]
[1736295607395,0.11524484,97297.0,97285.0,0.3608]
[1736295608084,0.11524484,97297.0,97285.0,0.39707749]
[1736295608891,0.11524484,97297.0,97285.0,0.32627158]
[1736295609589,0.3608,97290.0,97285.0,0.03627749]
[1736295609888,0.11430083,97289.0,97280.0,0.10184498]
[1736295610191,0.11430083,97289.0,97280.0,0.13342307]
[1736295610785,0.11430083,97289.0,97280.0,0.03157809]
[1736295610985,0.11430083,97289.0,97272.0,0.30285912]
[1736295611187,0.11430083,97289.0,97279.0,0.10184498]
[1736295611789,0.11430083,97289.0,97279.0,0.08525035]
[1736295613691,0.11430083,97289.0,97280.0,0.3608]
[1736295614087,0.11430083,97289.0,97281.0,1.1351]
[1736295614892,0.11430083,97289.0,97281.0,1.0771649]
[1736295616587,0.1,97300.0,97288.0,0.3608]
[1736295616895,0.11711261,97297.0,97288.0,0.56448996]
[1736295617094,0.1,97300.0,97288.0,0.56448996]
[1736295617302,0.11107106,97298.0,97288.0,0.3081715]
[1736295617600,0.58358419,97309.0,97288.0,0.22190048]
[1736295617799,0.58358419,97309.0,97299.0,0.10184498]
[1736295618001,0.11107106,97300.0,97299.0,0.10184498]
[1736295618298,0.58358419,97309.0,97290.0,0.10184498]
[1736295618490,0.10914354,97300.0,97299.0,0.10184498]
[1736295618692,0.10914354,97306.0,97290.0,0.10184498]
[1736295618892,0.58358419,97309.0,97290.0,0.10184498]
[1736295619292,0.10914354,97306.0,97290.0,0.10184498]
[1736295619493,0.10914354,97308.0,97290.0,0.10184498]
[1736295619691,0.58358419,97309.0,97290.0,0.10184498]
[1736295619896,0.10863992,97305.0,97290.0,0.10184498]
[1736295620092,0.10863992,97308.0,97290.0,0.10184498]
[1736295620299,0.58358419,97309.0,97290.0,0.10184498]
[1736295620593,0.11033066,97304.0,97290.0,0.10184498]
[1736295620791,0.51443066,97308.0,97290.0,0.10184498]
[1736295620990,0.11033066,97303.0,97290.0,0.10184498]
[1736295621188,0.11033066,97304.0,97290.0,0.10184498]
[1736295621386,0.11033066,97307.0,97290.0,0.10184498]
[1736295621590,0.4041,97308.0,97290.0,0.10184498]
[1736295621791,0.11091475,97307.0,97290.0,0.10184498]
[1736295624299,0.58358419,97309.0,97290.0,0.10184498]
[1736295624494,0.11027526,97308.0,97299.0,0.10184498]
[1736295624701,0.58358419,97309.0,97299.0,0.10184498]
[1736295625201,0.11027526,97308.0,97299.0,0.10184498]
[1736295627697,0.11027526,97308.0,97290.0,0.10184498]
[1736295629896,0.11027526,97308.0,97298.0,0.10184498]
[1736295630497,0.11027526,97308.0,97288.0,0.04163447]
[1736295630705,0.11027526,97308.0,97298.0,0.10184498]
[1736295631404,0.11027526,97308.0,97298.0,0.06667373]
[1736295635104,0.11027526,97308.0,97298.0,0.13334746]
[1736295635306,0.11027526,97308.0,97299.0,0.4026]
[1736295635795,0.3608,97301.0,97299.0,0.4026]
[1736295636206,0.1192191,97300.0,97299.0,0.4026]
[1736295636598,0.1192191,97300.0,97299.0,0.31892851]
[1736295638615,0.1192191,97300.0,97299.0,0.24812935]
[1736295642511,0.1192191,97300.0,97299.0,0.16445683]
[1736295642704,0.1192191,97300.0,97298.0,0.03142565]
[1736295642911,0.1192191,97300.0,97290.0,0.06667373]
[1736295644005,0.1192191,97300.0,97290.0,0.09846176]
[1736295644508,0.1192191,97300.0,97290.0,0.08679178]
[1736295644708,0.1192191,97300.0,97290.0,0.09846176]
[1736295644909,0.3608,97292.0,97290.0,0.03178803]
[1736295645203,0.4016,97299.0,97282.0,0.06667373]
[1736295645408,0.11861597,97291.0,97289.0,0.06667373]
[1736295645603,0.51271151,97299.0,97281.0,0.6666649]
[1736295645803,0.11111151,97298.0,97289.0,0.06667373]
[1736295646009,0.4016,97299.0,97289.0,0.06667373]
[1736295646411,0.11111151,97298.0,97289.0,0.00874241]
[1736295646609,0.11111151,97298.0,97281.0,0.63657344]
[1736295646811,0.11111151,97298.0,97288.0,0.06667373]
[1736295648017,0.11111151,97298.0,97288.0,0.13334746]
[1736295648315,0.3608,97301.0,97288.0,0.06667373]
[1736295648506,0.11683242,97300.0,97288.0,0.06667373]
[1736295648706,0.3608,97301.0,97288.0,0.06667373]
[1736295648908,0.11912926,97300.0,97290.0,0.06667373]
[1736295649418,0.11912926,97300.0,97288.0,0.42747373]
[1736295649613,0.11912926,97300.0,97290.0,0.06667373]
[1736295654108,0.11912926,97300.0,97288.0,0.41047501]
[1736295654313,0.11912926,97300.0,97290.0,0.06667373]
[1736295654510,0.11357581,97307.0,97290.0,0.13334746]
[1736295654715,0.3985,97308.0,97288.0,0.3608]
[1736295654716,0.3985,97308.0,97297.0,0.13334746]
[1736295655113,0.11357581,97307.0,97297.0,0.13334746]
[1736295656323,0.11357581,97307.0,97297.0,0.07542371]
[1736295656527,0.11357581,97307.0,97297.0,0.13334746]
[1736295657618,0.11357581,97307.0,97297.0,0.06667373]
[1736295658018,0.11357581,97307.0,97297.0,0.10613748]
[1736295658212,0.11357581,97307.0,97297.0,0.17281121]
[1736295660138,0.11357581,97307.0,97297.0,0.10613748]
[1736295662730,0.11357581,97307.0,97297.0,0.08115299]
[1736295663617,0.3608,97304.0,97297.0,0.08115299]
[1736295664232,0.10894267,97303.0,97297.0,0.08115299]
[1736295664829,0.10894267,97303.0,97297.0,0.05908478]
[1736295665033,0.10894267,97303.0,97297.0,0.04384335]
[1736295665728,0.10894267,97303.0,97297.0,0.08281223]
[1736295667923,0.11349057,97307.0,97297.0,0.08281223]
[1736295668129,0.11349057,97307.0,97297.0,0.03896888]
[1736295668429,0.3985,97308.0,97293.0,0.06667373]
[1736295668430,0.3985,97308.0,97293.0,0.00875011]
[1736295668627,0.10812084,97307.0,97298.0,0.06667373]
[1736295670631,0.10812084,97307.0,97298.0,0.11564077]
[1736295671429,0.10812084,97307.0,97298.0,0.08007237]
[1736295674726,0.10812084,97307.0,97298.0,0.04896704]
[1736295674932,0.3608,97303.0,97290.0,0.06667373]
[1736295675129,0.3608,97295.0,97290.0,0.06667373]
[1736295675333,0.3608,97295.0,97285.0,0.34772571]
[1736295675534,0.10993136,97294.0,97285.0,0.39570633]
[1736295676028,0.10993136,97294.0,97285.0,0.3290326]
[1736295676235,0.3608,97287.0,97258.0,0.3608]
[1736295676437,0.4276,97286.0,97270.0,0.06667373]
[1736295676740,0.54115913,97286.0,97270.0,0.06667373]
[1736295676941,0.54115913,97286.0,97279.0,0.05111613]
[1736295678538,0.54115913,97286.0,97276.0,0.06667373]
[1736295679441,0.54115913,97286.0,97264.0,0.8264]
[1736295679643,0.54115913,97286.0,97276.0,0.06667373]
[1736295681443,0.54115913,97286.0,97232.0,0.3608]
[1736295681444,0.20002119,97274.0,97232.0,0.3608]
[1736295681632,0.20002119,97274.0,97211.0,0.3608]
[1736295681633,0.13334746,97242.0,97211.0,0.3608]
[1736295681832,0.7414,97241.0,97227.0,0.3608]
[1736295682040,0.06667373,97240.0,97220.0,0.06667373]
[1736295682232,0.06667373,97230.0,97210.0,0.3608]
[1736295682439,0.06667373,97230.0,97205.0,0.04874508]
[1736295682440,0.06667373,97220.0,97205.0,0.04874508]
[1736295682659,0.3608,97219.0,97203.0,1.1154]
[1736295682949,0.47046313,97219.0,97203.0,0.8073]
[1736295683241,0.3608,97211.0,97203.0,0.037]
[1736295683634,0.11528668,97210.0,97203.0,0.037]
[1736295683833,0.11528668,97210.0,97203.0,0.08688734]
[1736295684045,0.11528668,97210.0,97203.0,0.039]
[1736295684439,0.11528668,97210.0,97203.0,0.038]
[1736295685245,0.19636734,97209.0,97203.0,0.038]
[1736295685444,0.19636734,97209.0,97188.0,0.16675939]
[1736295685645,0.3608,97201.0,97188.0,0.16675939]
[1736295686045,0.11424292,97200.0,97188.0,0.16675939]
[1736295686640,0.11424292,97200.0,97188.0,0.21662311]
[1736295687043,0.11424292,97200.0,97188.0,0.21762311]
[1736295687245,0.27504288,97189.0,97188.0,0.21762311]
[1736295687744,0.39099483,97189.0,97188.0,0.21862311]
[1736295688148,0.49221526,97189.0,97188.0,0.21862311]
[1736295688937,0.45576527,97189.0,97188.0,0.21762311]
[1736295689140,0.43469527,97189.0,97188.0,0.21762311]
[1736295689742,0.43469527,97189.0,97188.0,0.21662311]
[1736295689938,0.43469527,97189.0,97188.0,0.21862311]
[1736295691551,0.43469527,97189.0,97188.0,0.05186372]
[1736295691944,0.33347484,97189.0,97188.0,0.05186372]
[1736295696852,0.33347484,97189.0,97180.0,0.3608]
[1736295697155,0.3608,97183.0,97156.0,0.00148]
[1736295697354,0.7216,97165.0,97131.0,0.28494603]
[1736295697552,0.3608,97165.0,97141.0,1.5]
[1736295697752,0.3608,97142.0,97141.0,1.5]
[1736295698143,0.47193114,97142.0,97141.0,1.5]
[1736295698350,0.3608,97165.0,97142.0,0.28494603]
[1736295698645,0.3608,97157.0,97155.0,0.10181486]
[1736295698850,0.3608,97157.0,97147.0,0.10181486]
[1736295699058,0.11058392,97156.0,97148.0,1.1396]
[1736295700054,0.09067392,97156.0,97148.0,1.1396]
[1736295700561,0.09067392,97156.0,97153.0,0.3608]
[1736295701364,0.09167392,97156.0,97153.0,0.3608]
[1736295701560,0.09167392,97156.0,97148.0,0.0014]
[1736295701760,0.3608,97154.0,97146.0,0.10181486]
[1736295701964,0.3608,97154.0,97142.0,0.14767764]
[1736295702162,0.3608,97146.0,97142.0,0.14767764]
[1736295702560,0.1160822,97145.0,97142.0,0.14767764]
[1736295703864,0.1160822,97145.0,97142.0,0.14867764]
[1736295706960,0.11731206,97153.0,97142.0,0.14867764]
[1736295707160,0.3608,97154.0,97142.0,0.14867764]
[1736295707461,0.10531206,97152.0,97142.0,0.14867764]
[1736295707670,0.10531206,97152.0,97148.0,0.3608]
[1736295707858,0.1266218,97170.0,97161.0,0.10181486]
[1736295708165,0.11493461,97170.0,97165.0,0.10181486]
[1736295708470,0.33316353,97188.0,97166.0,1.5]
[1736295708666,0.09990927,97169.0,97166.0,1.5]
[1736295708866,0.10946674,97187.0,97167.0,0.28494603]
[1736295709068,0.00154354,97200.0,97184.0,0.3608]
[1736295709269,0.10946674,97192.0,97190.0,0.10181486]
[1736295709569,0.00154354,97200.0,97185.0,0.85904]
[1736295709769,0.1193287,97191.0,97185.0,0.8576]
[1736295710157,0.00154354,97200.0,97185.0,0.8576]
[1736295710470,0.1193287,97197.0,97190.0,0.10181486]
[1736295710970,0.00154354,97200.0,97190.0,0.10181486]
[1736295711162,0.11708877,97196.0,97190.0,0.10181486]
[1736295711362,0.11708877,97197.0,97190.0,0.10181486]
[1736295711558,0.001,97192.0,97190.0,0.10181486]
[1736295711963,0.11005934,97191.0,97190.0,0.10181486]
[1736295712361,0.001,97196.0,97190.0,0.10181486]
[1736295712561,0.11105934,97196.0,97190.0,0.10181486]
[1736295712857,0.001,97192.0,97190.0,0.15002232]
[1736295713063,0.001,97191.0,97190.0,0.04820746]
[1736295713260,0.11684454,97191.0,97185.0,0.859]
[1736295713463,0.11684454,97191.0,97185.0,0.8576]
[1736295715666,0.11784454,97191.0,97185.0,0.8576]
[1736295716263,0.11684454,97191.0,97185.0,0.8576]
[1736295716670,0.11684454,97191.0,97185.0,0.79962286]
[1736295717373,0.11684454,97191.0,97185.0,0.84889209]
[1736295719678,0.08575904,97190.0,97185.0,0.84889209]
[1736295720183,0.08134659,97189.0,97185.0,0.84889209]
[1736295720766,0.16710563,97189.0,97185.0,0.84889209]
[1736295721070,0.11430563,97189.0,97185.0,0.84889209]
[1736295721276,0.3608,97221.0,97186.0,0.28494603]
[1736295721476,0.30097022,97212.0,97205.0,0.3608]
[1736295721978,0.11578333,97211.0,97205.0,0.3608]
[1736295722479,0.11578333,97216.0,97205.0,0.3608]
[1736295722679,0.001,97212.0,97205.0,0.3608]
[1736295722881,0.002,97212.0,97205.0,0.3608]
[1736295723178,0.11384561,97211.0,97205.0,0.3608]
[1736295723677,0.11384561,97211.0,97205.0,0.41306763]
[1736295724270,0.11484561,97211.0,97205.0,0.41306763]
[1736295724468,0.3608,97208.0,97205.0,0.05226763]
[1736295724668,0.3608,97208.0,97190.0,0.10181486]
[1736295724881,0.3608,97200.0,97190.0,0.15438296]
[1736295725178,0.4132,97199.0,97190.0,0.15438296]
[1736295725376,0.53426536,97199.0,97190.0,0.0525681]
[1736295725570,0.01257969,97198.0,97180.0,0.10181486]
[1736295725879,0.11839414,97197.0,97180.0,0.10181486]
[1736295726078,0.3608,97189.0,97180.0,0.10181486]
[1736295726577,0.11839414,97188.0,97180.0,0.10181486]
[1736295726777,0.11839414,97188.0,97180.0,0.04382766]
[1736295727688,0.3608,97186.0,97180.0,0.04382766]
[1736295728078,0.11603887,97185.0,97180.0,0.04382766]
[1736295728381,0.11603887,97185.0,97180.0,0.09408244]
[1736295728574,0.11603887,97185.0,97180.0,0.04382766]
[1736295728882,0.11603887,97185.0,97180.0,0.001]
[1736295729780,0.3267,97184.0,97180.0,0.001]
[1736295730173,0.11473612,97183.0,97180.0,0.001]
[1736295730575,0.11473612,97183.0,97170.0,0.01572166]
[1736295730771,0.3608,97171.0,97170.0,0.01572166]
[1736295731177,0.47900956,97171.0,97170.0,0.01572166]
[1736295732182,0.47900956,97171.0,97147.0,0.46172]
[1736295732385,0.3608,97167.0,97147.0,0.46172]
[1736295732785,0.3608,97159.0,97147.0,0.46172]
[1736295733286,0.11091858,97158.0,97147.0,0.46172]
[1736295733787,0.11091858,97158.0,97147.0,0.51285608]
[1736295734488,0.20577878,97158.0,97147.0,0.51285608]
[1736295734879,0.20677878,97158.0,97147.0,0.51285608]
[1736295735079,0.20777878,97158.0,97147.0,0.51285608]
[1736295735781,0.3608,97151.0,97133.0,0.01572695]
[1736295736685,0.0419863,97150.0,97133.0,0.01572695]
[1736295736884,0.10181486,97143.0,97133.0,0.06848264]
[1736295737086,0.8135,97142.0,97133.0,0.01572695]
[1736295737282,0.9272893,97142.0,97133.0,0.01572695]
[1736295738179,0.0948602,97141.0,97133.0,0.01572695]
[1736295739392,0.0958602,97141.0,97133.0,0.01572695]
[1736295739888,0.0958602,97141.0,97140.0,0.3608]
[1736295740283,0.20931899,97141.0,97140.0,0.3608]
[1736295740481,0.11445879,97141.0,97140.0,1.8608]
[1736295741591,0.11445879,97141.0,97140.0,1.7898945]
[1736295741783,0.11445879,97141.0,97140.0,0.3608]
[1736295741986,0.11345879,97141.0,97134.0,0.4263]
[1736295742179,0.11445879,97141.0,97134.0,0.4263]
[1736295742385,0.001,97141.0,97134.0,0.4263]
[1736295742583,0.10858489,97140.0,97135.0,1.5]
[1736295743986,0.10858489,97140.0,97134.0,0.4263]
[1736295744487,0.10858489,97140.0,97134.0,1.9263]
[1736295745085,0.10958489,97140.0,97134.0,1.9263]
[1736295745392,0.001,97140.0,97134.0,0.4263]
[1736295745589,0.11163851,97139.0,97134.0,0.4263]
[1736295747586,0.11163851,97139.0,97134.0,0.36828532]
[1736295747996,0.11263851,97139.0,97134.0,0.36828532]
[1736295748297,0.001,97139.0,97134.0,0.36828532]
[1736295748791,0.11729197,97138.0,97134.0,0.36828532]
[1736295750993,0.11829197,97138.0,97134.0,0.36828532]
[1736295751396,0.001,97138.0,97134.0,0.36828532]
[1736295751592,0.11527771,97137.0,97134.0,0.36828532]
[1736295753792,0.11527771,97137.0,97132.0,0.0014]
[1736295753994,1.1237,97136.0,97121.0,0.3608]
[1736295754197,0.10181486,97131.0,97121.0,0.3608]
[1736295754595,0.10181486,97131.0,97120.0,0.00154396]
[1736295754596,0.29132578,97128.0,97120.0,0.00154396]
[1736295754904,0.11628076,97127.0,97120.0,0.00154396]
[1736295757007,0.10181486,97122.0,97120.0,0.00154396]
[1736295757498,0.11516032,97121.0,97120.0,0.00154396]
[1736295759513,0.11516032,97121.0,97120.0,0.36234396]
[1736295759806,0.11616032,97121.0,97120.0,0.36234396]
[1736295760199,0.001,97121.0,97120.0,0.36234396]
[1736295760399,0.11015819,97121.0,97120.0,0.36234396]
[1736295762810,0.11086087,97137.0,97120.0,0.36234396]
[1736295763107,0.96126087,97156.0,97136.0,0.3608]
[1736295763307,0.10181486,97150.0,97136.0,0.28988417]
[1736295763604,0.3608,97139.0,97120.0,0.36234396]
[1736295764008,0.10181486,97130.0,97120.0,0.36234396]
[1736295764305,0.001,97121.0,97120.0,0.36234396]
[1736295764698,0.11745107,97121.0,97120.0,0.36234396]
[1736295764899,0.11645107,97121.0,97120.0,0.36234396]
[1736295765307,0.10931473,97128.0,97120.0,0.36234396]
[1736295765504,0.001,97121.0,97120.0,0.36234396]
[1736295765904,0.12015494,97121.0,97120.0,0.36234396]
[1736295766100,0.11915494,97121.0,97120.0,0.36234396]
[1736295766304,0.12015494,97121.0,97120.0,0.36234396]
[1736295766506,0.001,97121.0,97120.0,0.36234396]
[1736295766708,0.12015494,97121.0,97120.0,0.36234396]
[1736295767709,0.11915494,97121.0,97120.0,0.36234396]
[1736295768100,0.11052753,97127.0,97120.0,0.36234396]
[1736295768504,0.09493132,97128.0,97120.0,0.36234396]
[1736295768705,0.11052753,97127.0,97120.0,0.36234396]
[1736295769199,0.11052753,97127.0,97120.0,0.3608]
[1736295770196,0.11052753,97127.0,97123.0,0.3608]
[1736295770402,0.11052753,97127.0,97124.0,0.2997]
[1736295770905,0.39880967,97133.0,97124.0,0.2997]
[1736295771106,0.10828384,97132.0,97131.0,0.3608]
[1736295771303,0.10828384,97132.0,97131.0,0.28988098]
[1736295771502,0.39880967,97133.0,97131.0,0.28988098]
[1736295771909,0.10828384,97132.0,97131.0,0.28988098]
[1736295772100,0.10928384,97132.0,97131.0,0.28988098]
[1736295772717,0.10828384,97132.0,97131.0,0.28988098]
[1736295774899,0.10928384,97132.0,97131.0,0.20606634]
[1736295777602,0.10928384,97132.0,97127.0,0.0510259]
[1736295777808,0.10928384,97132.0,97124.0,0.2997]
[1736295779009,0.10928384,97132.0,97124.0,0.35148887]
[1736295783410,0.10928384,97132.0,97124.0,0.35142872]
[1736295785010,0.39880967,97133.0,97124.0,0.19669193]
[1736295785217,0.11537928,97131.0,97124.0,0.19669193]
[1736295785519,0.11537928,97132.0,97124.0,0.19669193]
[1736295785719,0.11537928,97135.0,97124.0,0.19669193]
[1736295785921,0.09493132,97136.0,97124.0,0.19669193]
[1736295786220,0.11932967,97135.0,97124.0,0.19669193]
[1736295786615,0.001,97133.0,97124.0,0.19669193]
[1736295787124,0.10946108,97132.0,97124.0,0.19669193]
[1736295787421,0.10946108,97132.0,97124.0,0.09998198]
[1736295787737,0.10946108,97132.0,97123.0,0.3608]
[1736295788619,0.11177954,97139.0,97123.0,0.3608]
[1736295788820,0.10181486,97150.0,97123.0,0.3608]
[1736295789124,0.11269579,97144.0,97123.0,0.40473141]
[1736295790623,0.11269579,97144.0,97130.0,0.10181486]
[1736295790817,0.11269579,97144.0,97134.0,0.3608]
[1736295791012,0.11269579,97144.0,97134.0,0.27699202]
[1736295791925,0.11109468,97151.0,97134.0,0.27699202]
[1736295792230,0.11091893,97159.0,97140.0,0.10181486]
[1736295792529,0.11422602,97151.0,97140.0,0.10181486]
[1736295792720,0.11422602,97151.0,97141.0,0.4023]
[1736295793117,0.11422602,97151.0,97142.0,0.34518648]
[1736295794824,0.11422602,97151.0,97148.0,0.3608]
[1736295796932,0.11422602,97151.0,97140.0,0.0431429]
[1736295797115,0.10181486,97150.0,97134.0,0.27699202]
[1736295797319,0.41891486,97150.0,97134.0,0.27699202]
[1736295797519,0.9365517,97149.0,97134.0,0.21897676]
[1736295799035,0.9365517,97149.0,97134.0,0.25592485]
[1736295799221,1.04747063,97149.0,97139.0,0.10181486]
[1736295799623,1.04747063,97149.0,97134.0,0.25592485]
[1736295800923,1.04747063,97149.0,97134.0,0.18501428]
[1736295801223,1.40827063,97149.0,97134.0,0.18501428]
[1736295802529,0.11091893,97148.0,97134.0,0.18501428]
[1736295802926,0.10929945,97147.0,97138.0,0.10181486]
[1736295803127,0.10929945,97147.0,97134.0,0.03694809]
[1736295803329,0.10929945,97147.0,97130.0,0.10181486]
[1736295806833,0.10929945,97147.0,97137.0,0.10181486]
[1736295807635,0.10929945,97147.0,97137.0,0.07052878]
[1736295808336,0.10929945,97147.0,97130.0,0.10181486]
[1736295810339,0.10929945,97147.0,97127.0,0.3608]
[1736295810645,0.3608,97140.0,97127.0,0.3608]
[1736295811139,0.11649977,97139.0,97127.0,0.3608]
[1736295814037,0.11649977,97139.0,97123.0,0.03668448]
[1736295814038,0.11649977,97139.0,97121.0,0.29186792]
[1736295814239,0.11649977,97139.0,97129.0,0.10181486]
[1736295814439,0.11649977,97139.0,97121.0,0.29186792]
[1736295814640,0.3608,97130.0,97121.0,0.29186792]
[1736295815140,0.10775537,97129.0,97121.0,0.32896898]
[1736295816436,0.11668178,97139.0,97121.0,0.32896898]